Cogmind - Beta 12 X6 @@@ ROGUE MODE // 2023.02.25 @ 10:07:58 Player: Plexion Result: Destroyed by S-10 Pest with Light Assault Rifle Performance ------------- Evolutions (1) 500 Regions Visited (6) 1200 Robots Destroyed (57) 285 Value Destroyed (1121) 1121 Prototype IDs (4) 80 Alien Tech Used (0) 0 Bonus (60) 60 TOTAL SCORE: 3246 Bonus ------- Follower Combat Kills 60 Cogmind --------- Core Integrity 0/400 Matter 267/300 Energy 100/100 System Corruption 0% Temperature Cool (0) Movement Core (1350) Ox26 Location -8/Mines Parts ------- > --- POWER (1) -------- (None) > --- PROPULSION (3) --- (None) > --- UTILITY (3) ------ Huge Storage Unit > --- WEAPON (2) ------- (None) > --- INVENTORY (25) --- Ion Engine Light Treads Light Treads Light Treads Light Treads Improved Flight Unit Improved Heat Sink Experimental Sensor Array Light Armor Plating Splice Drone Bay (6/6) Assault Rifle Heavy Assault Rifle Plasma Cutter Peak State ------------ > --- POWER ------------ Improved Ion Engine > --- PROPULSION ------- Light Treads Light Treads Light Treads > --- UTILITY ---------- Huge Storage Unit Experimental Sensor Array Light Armor Plating > --- WEAPON ----------- Heavy Assault Rifle Heavy Assault Rifle > --- INVENTORY -------- Ion Engine Light Treads Light Treads Light Treads Compact Wheel Improved Flight Unit Improved Heat Sink Light Armor Plating Light Armor Plating Splice Drone Bay Assault Rifle Grenade Launcher Plasma Cutter [Rating: 22] Favorites ----------- Power Improved Ion Engine Engine Improved Ion Engine Propulsion Light Treads Treads Light Treads Wheel Compact Wheel Flight Unit Improved Flight Unit Utility Huge Storage Unit Device Improved Heat Sink Storage Huge Storage Unit Protection Light Armor Plating Weapon Assault Rifle Ballistic Gun Assault Rifle Launcher Grenade Launcher Build | -11 -10 -10 -9 -9 -9 -8 ------- Run | Jun Mat Min Mat Min Exi Min Slots Evolved 2 | . . . 2 . . . Power . | . . . . . . . Propulsion 1 | . . . 1 . . . Utility 1 | . . . 1 . . . Weapon . | . . . . . . . Parts Attached 48 | 6 3 8 22 5 . 4 Power 5 | 1 . 1 2 . . 1 Engine 5 | 1 . 1 2 . . 1 Core . | . . . . . . . Reactor . | . . . . . . . Propulsion 15 | 2 1 . 9 2 . 1 Treads 12 | 2 . . 8 2 . . Leg . | . . . . . . . Wheel 2 | . 1 . . . . 1 Hover . | . . . . . . . Flight 1 | . . . 1 . . . Utility 14 | 1 2 4 3 3 . 1 Device 5 | . . 3 1 1 . . Storage 3 | 1 2 . . . . . Processor . | . . . . . . . Hackware . | . . . . . . . Protection 6 | . . 1 2 2 . 1 Artifact . | . . . . . . . Weapon 14 | 2 . 3 8 . . 1 Energy Gun . | . . . . . . . Energy Cannon . | . . . . . . . Ballistic Gun 10 | 2 . 2 6 . . . Ballistic Cannon . | . . . . . . . Launcher 4 | . . 1 2 . . 1 Special Weapon . | . . . . . . . Impact Weapon . | . . . . . . . Slashing Weapon . | . . . . . . . Piercing Weapon . | . . . . . . . Special Melee Weapon . | . . . . . . . Unidentified Prototypes 4 | . . 1 2 1 . . Parts Lost 17 | . . 1 8 . . 8 Power 2 | . . . 1 . . 1 Propulsion 8 | . . . 5 . . 3 Utility 3 | . . . 1 . . 2 Weapon 4 | . . 1 1 . . 2 Highest Loss Streak 8 | . . 1 2 . . 8 To Critical Strikes . | . . . . . . . Average Slot Usage (%) 97 | . 85 96 99 100 100 49 Engine 11 | . 14 14 11 11 11 . Treads 26 | . 22 14 31 33 33 22 Wheel 4 | . 5 14 1 . . 8 Device 8 | . . 10 11 9 . . Storage 11 | . 14 14 11 11 11 11 Protection 9 | . . . 10 12 22 8 Ballistic Gun 23 | . 28 27 21 22 22 . Naked Turns . | . . . . . . . Heaviest Build 99 | 14 89 92 97 99 99 90 Greatest Support 60 | 40 40 16 60 60 60 16 Greatest Overweight (x) 5 | 1 5 5 5 1 1 5 Average Overweight (x) 2 | . 3 5 1 1 1 5 Largest Inventory Capacity 25 | 8 25 25 25 25 25 25 Average Capacity 24 | 7 21 25 25 25 25 25 Most Carried 13 | 2 6 7 12 13 13 13 Average Carried 8 | 1 3 5 7 12 13 13 Final Capacity 25 | 8 25 25 25 25 25 25 Final Carried 13 | 2 6 7 10 13 13 13 Class Distribution -------------------- 59% | Scavenger-Mutant 40% | Mutant Dominant Class ---------------- Mutant | -10/Materials Mutant | -10/Mines Scavenger-Mutant | -9/Materials Scavenger-Mutant | -9/Mines Scavenger-Mutant | -9/Exiles Mutant | -8/Mines Resources | -11 -10 -10 -9 -9 -9 -8 ----------- Run | Jun Mat Min Mat Min Exi Min Matter Collected 1446 | 187 199 234 747 79 . . Remotely . | . . . . . . . Salvage Created 1923 | . 320 379 1159 65 . . Parts 121 | . 16 34 58 12 . 1 Haulers Intercepted 3 | . 1 . 2 . . . Recyclers Shooed . | . . . . . . . Parts Field Recycled . | . . . . . . . Retrieved Matter . | . . . . . . . Parts Self-Destructed . | . . . . . . . Prevented . | . . . . . . . Kills | -11 -10 -10 -9 -9 -9 -8 ------- Run | Jun Mat Min Mat Min Exi Min Combat Hostiles Destroyed 38 | . 2 13 22 . . 1 Guns 26 | . 2 10 14 . . . AOE 12 | . . 3 8 . . 1 Classes Destroyed 10 | . 4 3 3 . . . Worker 2 | . . . 1 1 . . Builder 2 | . . 1 . 1 . . Tunneler 3 | . . 1 1 1 . . Hauler 3 | . 1 . 2 . . . Recycler 5 | . 2 . 3 . . . Operator 1 | . . . 1 . . . Watcher 3 | . 1 . 2 . . . Swarmer 15 | . . 6 8 . . 1 Grunt 20 | . 2 7 11 . . . Sentry 3 | . . . 3 . . . Best Kill Streak 6 | . 4 5 6 1 . 1 Combat Bots Only 4 | . 2 3 4 . . 1 Max Kills in Single Turn 5 | . 1 2 5 1 . 1 Gunslinging . | . . . . . . . Exploded 4 | . . 2 4 . . 1 Melee . | . . . . . . . Uniques/NPCs Destroyed . | . . . . . . . Combat | -11 -10 -10 -9 -9 -9 -8 -------- Run | Jun Mat Min Mat Min Exi Min Damage Taken 2295 | . 93 361 1019 . . 822 Core 452 | . . 49 158 . . 245 Absorbed by Shields . | . . . . . . . Core Remaining (%) 90 | 100 . 80 . . . . Volleys Fired 145 | . 16 29 94 4 . 2 Largest 2 | . 2 2 2 2 . 1 Hottest 46 | . 40 40 46 46 . 30 Shots Fired 275 | . 32 55 178 8 . 2 Gun 268 | . 32 53 175 8 . . Cannon . | . . . . . . . Launcher 7 | . . 2 3 . . 2 Special . | . . . . . . . Kinetic 268 | . 32 53 175 8 . . Thermal . | . . . . . . . Explosive 7 | . . 2 3 . . 2 Electromagnetic . | . . . . . . . Robot Hit Streak 12 | . 5 11 12 3 . 2 Robot Miss Streak 5 | . 5 3 5 1 . . Penetration Max . | . . . . . . . Secondary Targets 3 | . . 2 1 . . . Max Gunslinging Chain 1 | . . 1 1 . . . Shots Hit Robots 188 | . 19 42 122 4 . 1 Core Hits 87 | . 9 22 48 3 . 5 Critical Kills . | . . . . . . . Critical Parts Destroyed 1 | . . 1 . . . . Critical Strikes 1 | . . 1 . . . . Destroy 1 | . . 1 . . . . Melee Attacks . | . . . . . . . Impact . | . . . . . . . Slashing . | . . . . . . . Piercing . | . . . . . . . Sneak Attacks . | . . . . . . . Combat Hostiles . | . . . . . . . Follow-up Attacks . | . . . . . . . Damage Inflicted 3292 | . 242 631 2048 54 . 317 Guns 2476 | . 242 539 1641 54 . . Cannons . | . . . . . . . Explosions 816 | . . 92 407 . . 317 Melee . | . . . . . . . Ramming . | . . . . . . . Kinetic 2476 | . 242 539 1641 54 . . Thermal . | . . . . . . . Explosive 816 | . . 92 407 . . 317 Electromagnetic . | . . . . . . . Impact . | . . . . . . . Slashing . | . . . . . . . Piercing . | . . . . . . . Highest Corruption . | . . . . . . . Average Corruption . | . . . . . . . Corruption Purged . | . . . . . . . Corruption Blocked . | . . . . . . . Overload Shots . | . . . . . . . Overflow Damage 73 | . . . 41 . . 32 Projectiles . | . . . . . . . Explosions 73 | . . . 41 . . 32 Melee . | . . . . . . . Knockbacks . | . . . . . . . Impact . | . . . . . . . Kinetic . | . . . . . . . Secondary . | . . . . . . . Self-Inflicted Damage 67 | . . 54 . . . 13 Shots 3 | . . 2 . . . 1 Rammed . | . . . . . . . Targets Rammed . | . . . . . . . Kicked . | . . . . . . . Crushed . | . . . . . . . Highest Temperature 8 | . . . 6 . . 8 Average Temperature 6 | . . . 6 . . 6 Received Heat Transfer 897 | . 54 144 456 . . 243 Siege Activations . | . . . . . . . Robots Corrupted . | . . . . . . . Combat Hostiles . | . . . . . . . Parts Fried . | . . . . . . . Impact Corruptions . | . . . . . . . Robots Melted . | . . . . . . . Combat Hostiles . | . . . . . . . Parts Melted . | . . . . . . . Heat Transferred . | . . . . . . . Parts Sabotaged . | . . . . . . . Parts Stolen . | . . . . . . . Parts Stripped . | . . . . . . . Power Chain Reactions . | . . . . . . . Missiles Intercepted . | . . . . . . . Alert | -11 -10 -10 -9 -9 -9 -8 ------- Run | Jun Mat Min Mat Min Exi Min Peak Influence 269 | . 105 228 269 104 . 23 Initial 104 | . . 40 29 104 . . Average 111 | . 50 142 151 57 . 3 Maximum Alert Level 1 | . . 1 1 . . . Low Security (%) 70 | 100 100 54 50 100 . 100 Level 1 29 | . . 45 49 . . . Level 2 . | . . . . . . . Level 3 . | . . . . . . . Level 4 . | . . . . . . . Level 5 . | . . . . . . . High Security . | . . . . . . . Max Security . | . . . . . . . Squads Dispatched 4 | . 1 . 3 . . . Investigation 1 | . 1 . . . . . Extermination . | . . . . . . . Reinforcement 3 | . . . 3 . . . Assault . | . . . . . . . Garrison . | . . . . . . . Intercept . | . . . . . . . Searches Triggered . | . . . . . . . Construction Impeded . | . . . . . . . Haulers Reinforced . | . . . . . . . Active Scanning Responses . | . . . . . . . Cargo Convoy Interrupts . | . . . . . . . Stealth | -11 -10 -10 -9 -9 -9 -8 --------- Run | Jun Mat Min Mat Min Exi Min Distress Signals 5 | . 1 3 1 . . . Communications Jammed . | . . . . . . . Distress Signals . | . . . . . . . Times Spotted 58 | . 4 14 34 . . 6 Peak Tracking Total 8 | . 3 3 8 . . 6 Tactical Retreats 3 | . . 1 2 . . . Traps | -11 -10 -10 -9 -9 -9 -8 ------- Run | Jun Mat Min Mat Min Exi Min Traps Triggered 1 | . 1 . . . . . Indirectly . | . . . . . . . Trap Hack Attempts . | . . . . . . . Triggered . | . . . . . . . Disarmed . | . . . . . . . Reprogrammed . | . . . . . . . Reused . | . . . . . . . Traps Extracted . | . . . . . . . Installed . | . . . . . . . Triggered . | . . . . . . . Machines | -11 -10 -10 -9 -9 -9 -8 ---------- Run | Jun Mat Min Mat Min Exi Min Machines Disabled 1 | . . 1 . . . . Max in Single Turn 1 | . . 1 . . . . Machines Repaired . | . . . . . . . Machines Sabotaged . | . . . . . . . Overloaded Fab Kills . | . . . . . . . Hacking | -11 -10 -10 -9 -9 -9 -8 --------- Run | Jun Mat Min Mat Min Exi Min Machines Accessed 3 | . . 1 1 . 1 . Terminals . | . . . . . . . Fabricators . | . . . . . . . Repair Stations . | . . . . . . . Recycling Units . | . . . . . . . Scanalyzers 1 | . . . 1 . . . Garrison Access . | . . . . . . . Total Hacks 6 | . . 1 4 . 1 . Successful 2 | . . 1 . . 1 . Failed 4 | . . . 4 . . . Catastrophic . | . . . . . . . Database Lockouts . | . . . . . . . Manual 4 | . . . 4 . . . Terminals . | . . . . . . . Fabricators . | . . . . . . . Repair Stations . | . . . . . . . Recycling Units . | . . . . . . . Scanalyzers 4 | . . . 4 . . . Garrison Access . | . . . . . . . Terminal Hacks 2 | . . 1 . . 1 . Record 1 | . . . . . 1 . Open Door 1 | . . 1 . . . . Fabricator Hacks . | . . . . . . . Repair Station Hacks . | . . . . . . . Recycling Unit Hacks . | . . . . . . . Scanalyzer . | . . . . . . . Garrison Access Hacks . | . . . . . . . Unauthorized Hacks . | . . . . . . . Terminals . | . . . . . . . Fabricators . | . . . . . . . Repair Stations . | . . . . . . . Recycling Units . | . . . . . . . Scanalyzers . | . . . . . . . Garrison Access . | . . . . . . . Data Cores Recovered . | . . . . . . . Used . | . . . . . . . Hacking Detections 1 | . . . 1 . . . Full Trace Events . | . . . . . . . Feedback Events . | . . . . . . . Feedback Blocked . | . . . . . . . Robot Schematics Acquired . | . . . . . . . Robots Built . | . . . . . . . Authchips . | . . . . . . . Time . | . . . . . . . Total Robot Build Rating . | . . . . . . . Part Schematics Acquired . | . . . . . . . Parts Built . | . . . . . . . Authchips . | . . . . . . . Time . | . . . . . . . Total Part Build Rating . | . . . . . . . Parts Repaired . | . . . . . . . Time . | . . . . . . . Parts Recycled . | . . . . . . . Recycled Matter . | . . . . . . . Retrieved Matter . | . . . . . . . Retrieved Components . | . . . . . . . Parts Scanalyzed . | . . . . . . . Part Schematics Acquired . | . . . . . . . Parts Damaged . | . . . . . . . Bothacking | -11 -10 -10 -9 -9 -9 -8 ------------ Run | Jun Mat Min Mat Min Exi Min Used RIF Installer . | . . . . . . . Robots Hacked . | . . . . . . . Non-combat . | . . . . . . . Combat . | . . . . . . . Robot Hacks Applied . | . . . . . . . Relay Couplers Released . | . . . . . . . Fabnet Peak Effective % . | . . . . . . . Robots Rewired . | . . . . . . . Allies Hacked . | . . . . . . . Hacks Repelled . | . . . . . . . Allies | -11 -10 -10 -9 -9 -9 -8 -------- Run | Jun Mat Min Mat Min Exi Min Total Allies 1 | . . 1 . . . . Largest Group 1 | . . 1 . . . . Highest-Rated Group 31 | . . 31 . . . . Highest-Rated Ally 31 | . . 31 . . . . Total Orders . | . . . . . . . Ally Attacks 6 | . . 6 . . . . Total Damage 128 | . . 128 . . . . Kills 2 | . . 2 . . . . Allies Corrupted . | . . . . . . . Allies Melted . | . . . . . . . Intel | -11 -10 -10 -9 -9 -9 -8 ------- Run | Jun Mat Min Mat Min Exi Min Robot Analysis Total . | . . . . . . . Derelict Logs Recovered 1 | . . . . 1 . . Drone Launches . | . . . . . . . Drone Recoveries . | . . . . . . . Exploration | -11 -10 -10 -9 -9 -9 -8 ------------- Run | Jun Mat Min Mat Min Exi Min Turns Passed 3721 | 57 326 853 1180 793 473 39 Spaces Moved 1295 | 32 134 236 371 322 198 2 Core 5 | 5 . . . . . . Treads 924 | 27 64 . 313 322 198 . Legs . | . . . . . . . Wheels 366 | . 70 236 58 . . 2 Hover . | . . . . . . . Flight . | . . . . . . . Fastest Speed 50 | 50 160 175 175 240 240 175 Average Speed 219 | 145 201 175 230 240 240 175 Slowest Speed 320 | 160 320 175 320 240 240 175 Overloaded Moves . | . . . . . . . Propulsion Burnouts . | . . . . . . . Robots Hopped . | . . . . . . . Cave-ins Triggered . | . . . . . . . Exploration Rate (%) 34 | 4 29 42 34 65 60 4 Regions Visited 6 Branch Regions 4 Pre-discovered Areas 2 | . . . . 2 . . Known Exits Taken . | . . . . . . . Unknown Exits Taken 6 | 1 1 1 1 1 1 . Scrap Searched 1 | . . . . 1 . . Spaces Dug 8 | . . . . . . 8 Terrain Destroyed 34 | . . 10 10 . . 14 Melee . | . . . . . . . Projectile . | . . . . . . . AOE 34 | . . 10 10 . . 14 Terrain Rammed . | . . . . . . . Walls Destroyed . | . . . . . . . Machines Disabled . | . . . . . . . Actions | -11 -10 -10 -9 -9 -9 -8 --------- Run | Jun Mat Min Mat Min Exi Min Total 1897 | 39 160 621 513 333 197 34 Wait 388 | . . 345 15 2 . 26 Move 1289 | 31 133 235 370 321 197 2 Hop . | . . . . . . . Pick Up 13 | 2 3 . 7 1 . . Fast Attach 18 | 6 3 3 4 . . 2 Attach 12 | . . 3 9 . . . Detach 10 | . 3 4 3 . . . Swap 18 | . . 2 9 5 . 2 Drop 4 | . 2 . 2 . . . Fire 145 | . 16 29 94 4 . 2 Melee . | . . . . . . . Ram . | . . . . . . . Kick . | . . . . . . . Crush . | . . . . . . . Escape Stasis . | . . . . . . . Rewire . | . . . . . . . Trap . | . . . . . . . Miscellaneous . | . . . . . . . Route ------- -11/Junkyard -10/Materials -10/Mines -9/Materials (discovered 2 exits: [*Mat] / [*Min]) -9/Mines (discovered 2 exits: [*Mat] / *Exi) -9/Exiles -8/Mines History --------- Turn | Location | Event 7 | -11/Junkyard | Discovered new exit (range 14) 58 | -11/Junkyard | Entered Materials 300 | -10/Materials | Build established: Mutant 332 | -10/Materials | Discovered new exit (range 12) 384 | -10/Materials | Entered Mines 459 | -10/Mines | Received a Mining Laser from a helpful Derelict 585 | -10/Mines | Excavation squad dispatched 585 | -10/Mines | A large section of the Mines collapsed 835 | -10/Mines | Excavation squad dispatched 1085 | -10/Mines | Excavation squad dispatched 1095 | -10/Mines | Found the Drone Emporium 1107 | -10/Mines | Found Prototype Device 1107 | -10/Mines | Identified Splice Drone Bay 1193 | -10/Mines | Discovered new exit (range 9) 1237 | -10/Mines | Entered Materials 1237 | -9/Materials | Evolved 2 slots: Propulsion x1, Utility x1 1776 | -9/Materials | Build established: Scavenger-Mutant 2157 | -9/Materials | Discovered new exit (range 6) 2314 | -9/Materials | Discovered new exit (range 3) 2417 | -9/Materials | Entered Mines 2434 | -9/Mines | Learned location of Recycling (-7) 2535 | -9/Mines | Found a damaged Exp. Sensor Array with a note attached 2540 | -9/Mines | Found Prototype Device 2916 | -9/Mines | Discovered new exit (range 10) 3038 | -9/Mines | Deemed a non-threat by the Exiles lab entrance 3095 | -9/Mines | Identified Exp. Sensor Array 3099 | -9/Mines | Learned location of Storage (-7) 3201 | -9/Mines | Discovered new exit (range 5) 3210 | -9/Mines | Entered Exiles 3210 | -9/Exiles | Found Exiles lab abandoned 3659 | -9/Exiles | Discovered new exit (range 12) 3683 | -9/Exiles | Entered Mines 3697 | -8/Mines | Core integrity fell below 50% 3712 | -8/Mines | Core integrity fell below 20% 3722 | -8/Mines | Destroyed by S-10 Pest with Light Assault Rifle Last Messages --------------- 03690_ Lgt. Armor Plating severed. 03690_ Acquired Imp. Ion Engine. 03693_ Lgt. Armor Plating destroyed. 03694_ Acquired Lgt. Armor Plating. 03696_ K-01 Serf collects debris. 03699_ The unstable cave ceiling collapses. 03699_ Imp. Ion Engine destroyed. 03700_ K-01 Serf collects debris. 03701_ Lgt. Armor Plating destroyed. 03701_ L-31 Rogue destroyed. 03701_ R-06 Scavenger collects Flight Unit. 03703_ K-01 Serf collects debris. 03703_ R-06 Scavenger collects Imp. Ion Engine. 03705_ K-01 Serf collects debris. 03709_ Critical hit (Burn: +37). 03710_ K-01 Serf collects debris. 03715_ Com. Wheel destroyed. 03715_ K-01 Serf collects debris. 03719_ Critical hit (Burn: +37). 03721_ Lgt. Treads destroyed. Map ----- +----------------------------------------------------+ | | | | | | | | | | | | | | | | | | | | | | | ???????????????????????????????? | | ???????????????????????????????? | | ????????????????###????????????? | | ????????????????? ##??????????? | | ?????????????????? #?????????? | | ?????????????????? ?##??????? | | ??????????????????? t## ##????? | | ???????????????????? # ##???? | | ???????????????????## #???? | | ???????????????????# #???? | | ???????????????????## #???? | | ????????????????#### s #???? | | ????????????????# rgs ##??? | | ???????????????????# gk k #??? | | ???????????????????# @ #??? | | ????????????????# ###k #??? | | ???????????# #####??? #??? | | ???????????# ###??????????? #??? | | ??????????????????????????? #??? | | ????????????????????????????#??? | | ???????????????????????????????? | | ???????????????????????????????? | | ???????????????????????????????? | | ???????????????????????????????? | | ???????????????????????????????? | | ???????????????????????????????? | | ???????????????????????????????? | | ???????????????????????????????? | | ???????????????????????????????? | | ???????????????????????????????? | | ???????????????????????????????? | | ???????????????????????????????? | | ???????????????????????????????? | | ???????????????????????????????? | | ???????????????????????????????? | | ???????????????????????????????? | | ???????????????????????????????? | | ???????????????????????????????? | | ???????????????????????????????? | +----------------------------------------------------+ Best States ------------- Heat Dissipation 42 Energy Generation 12 Energy Capacity 265 Matter Stores 300 Matter Capacity 300 Sight Range 16 Terrain Scan Density 10 Armor Coverage 300 Evasion (%) 40 Recoil Reduction 3 Item Schematics ----------------- None Robot Schematics ------------------ None Fabricated ------------ Nothing Alien Tech Used ----------------- None Achievements -------------- None Challenges ------------ None Game ------ Seed DataNetworkAutohacker Manual? 0 Play Time 00:13:34 Cumulative 301.0 hours Start 2023.02.25 @ 09:54:19 End 2023.02.25 @ 10:07:58 Sessions 1 Manual Loads 0 Difficulty Rogue Special Mode None Game No. 411 Rogue 324 Adventurer 87 Explorer 0 Win Type - Total 11 Types 6/0/3/1/1/0/0/0/0 Lore% 80 Gallery% 84 Achievement% 71 Wizard Run 0 Options --------- ASCII 0 Keyboard 1 Movement Numpad Keybinds 0 Fullscreen 1 Font 18/SmallcapsGlow Map View 76x50 Tactical HUD 1 Map Filters NONE Filters NONE Steam 1 RUN: a3908554-77d6-4082-8ba2-fe58a0ab31af